Cogmind - Beta 11 X7 @@@ ROGUE MODE // 2021.08.30 @ 18:56:20 Player: LU-1G1 Result: Self-destructed Performance ------------- Evolutions (4) 2000 Regions Visited (7) 1400 Robots Destroyed (1) 5 Value Destroyed (10) 10 Prototype IDs (23) 460 Alien Tech Used (0) 0 Bonus (307) 307 TOTAL SCORE: 4182 Bonus ------- Follower Combat Kills 7 Aligned with FarCom 300 Cogmind --------- Core Integrity 850/850 Matter 295/300 Energy 100/100 System Corruption 0% Temperature Cool (0) Movement Core (50) Location -6/Factory Parts ------- > --- POWER (1) -------- (None) > --- PROPULSION (4) --- (None) > --- UTILITY (8) ------ (None) > --- WEAPON (2) ------- (None) > --- INVENTORY (5) ---- Reinforced Deuterium Engine Supersonic Drone Bay (1/1) Longsword +1 Peak State ------------ > --- POWER ------------ (None) > --- PROPULSION ------- Light Treads > --- UTILITY ---------- (None) > --- WEAPON ----------- Power Maul > --- INVENTORY -------- Reinforced Deuterium Engine Supersonic Drone Bay Longsword +1 [Rating: 7] Favorites ----------- Power Light Ion Engine Engine Light Ion Engine Propulsion Light Treads Treads Light Treads Leg Aluminum Leg Utility Small Storage Unit Storage Small Storage Unit Weapon EM Pulse Gun Energy Gun EM Pulse Gun Impact Weapon Power Maul Build | -11 -10 -10 -10 -9 -8 -7 -6 ------- Run | Scr Mat Min Exi Min Mat Fac Fac Slots Evolved 8 | . . . . . 4 2 2 Power . | . . . . . . . . Propulsion 2 | . . . . . 2 . . Utility 6 | . . . . . 2 2 2 Weapon . | . . . . . . . . Parts Attached 4 | . 2 . . . 1 1 . Power . | . . . . . . . . Engine . | . . . . . . . . Core . | . . . . . . . . Reactor . | . . . . . . . . Propulsion 3 | . 2 . . . 1 . . Treads 3 | . 2 . . . 1 . . Leg . | . . . . . . . . Wheel . | . . . . . . . . Hover . | . . . . . . . . Flight . | . . . . . . . . Utility . | . . . . . . . . Device . | . . . . . . . . Storage . | . . . . . . . . Processor . | . . . . . . . . Hackware . | . . . . . . . . Protection . | . . . . . . . . Artifact . | . . . . . . . . Weapon 1 | . . . . . . 1 . Energy Gun . | . . . . . . . . Energy Cannon . | . . . . . . . . Ballistic Gun . | . . . . . . . . Ballistic Cannon . | . . . . . . . . Launcher . | . . . . . . . . Special Weapon . | . . . . . . . . Impact Weapon 1 | . . . . . . 1 . Slashing Weapon . | . . . . . . . . Piercing Weapon . | . . . . . . . . Special Melee Weapon . | . . . . . . . . Unidentified Prototypes . | . . . . . . . . Parts Lost 5 | . . . . 2 1 2 . Power . | . . . . . . . . Propulsion 3 | . . . . 1 1 1 . Utility . | . . . . . . . . Weapon 2 | . . . . 1 . 1 . Highest Loss Streak 2 | . . . . 2 1 2 . Average Slot Usage (%) 31 | . 42 42 42 37 6 13 . Treads 21 | . 28 28 28 25 6 6 . Energy Gun 9 | . 14 14 14 11 . . . Naked Turns 23 | . . . . . 19 4 . Heaviest Build 12 | 12 2 2 2 2 . 3 . Greatest Support 20 | 20 3 3 3 3 3 3 . Greatest Overweight (x) . | . . . . . . . . Average Overweight (x) . | . . . . . . . . Largest Inventory Capacity 8 | . 8 5 5 5 5 5 . Average Capacity 5 | . 5 5 5 5 5 5 . Most Carried 6 | . 6 4 5 5 3 3 . Average Carried 4 | . 4 4 4 4 3 3 . Final Capacity 8 | 8 5 5 5 5 5 5 5 Final Carried 6 | 6 4 4 5 3 3 3 3 Class Distribution -------------------- 100% | Mutant Dominant Class ---------------- Mutant | -10/Materials Mutant | -10/Mines Mutant | -10/Exiles Mutant | -9/Mines Mutant | -8/Materials Mutant | -7/Factory Mutant | -6/Factory Resources | -11 -10 -10 -10 -9 -8 -7 -6 ----------- Run | Scr Mat Min Exi Min Mat Fac Fac Matter Collected 220 | 200 . . . 20 . . . Remotely . | . . . . . . . . Salvage Created 20 | . . . . 20 . . . Parts 4 | . . . . 4 . . . Haulers Intercepted . | . . . . . . . . Recyclers Shooed . | . . . . . . . . Parts Field Recycled . | . . . . . . . . Retrieved Matter . | . . . . . . . . Parts Self-Destructed . | . . . . . . . . Prevented . | . . . . . . . . Kills | -11 -10 -10 -10 -9 -8 -7 -6 ------- Run | Scr Mat Min Exi Min Mat Fac Fac Combat Hostiles Destroyed 1 | . . . . 1 . . . Melee 1 | . . . . 1 . . . Classes Destroyed 1 | . . . . 1 . . . Swarmer 1 | . . . . 1 . . . Best Kill Streak 1 | . . . . 1 . . . Combat Bots Only 1 | . . . . 1 . . . Max Kills in Single Turn 1 | . . . . 1 . . . Gunslinging . | . . . . . . . . Exploded . | . . . . . . . . Melee 1 | . . . . 1 . . . Uniques/NPCs Destroyed . | . . . . . . . . Combat | -11 -10 -10 -10 -9 -8 -7 -6 -------- Run | Scr Mat Min Exi Min Mat Fac Fac Damage Taken 1172 | . . 17 . 418 361 376 . Core 613 | . . . . 117 247 249 . Absorbed by Shields . | . . . . . . . . Core Remaining (%) 68 | 100 . . . 53 55 64 . Volleys Fired . | . . . . . . . . Largest . | . . . . . . . . Hottest . | . . . . . . . . Shots Fired . | . . . . . . . . Gun . | . . . . . . . . Cannon . | . . . . . . . . Launcher . | . . . . . . . . Special . | . . . . . . . . Kinetic . | . . . . . . . . Thermal . | . . . . . . . . Explosive . | . . . . . . . . Electromagnetic . | . . . . . . . . Robot Hit Streak . | . . . . . . . . Robot Miss Streak . | . . . . . . . . Penetration Max . | . . . . . . . . Secondary Targets . | . . . . . . . . Shots Hit Robots . | . . . . . . . . Core Hits 3 | . . . . 2 1 . . Critical Kills . | . . . . . . . . Critical Parts Destroyed . | . . . . . . . . Critical Strikes . | . . . . . . . . Melee Attacks 1 | . . . . . . 1 . Impact 1 | . . . . . . 1 . Slashing . | . . . . . . . . Piercing . | . . . . . . . . Sneak Attacks . | . . . . . . . . Combat Hostiles . | . . . . . . . . Follow-up Attacks . | . . . . . . . . Damage Inflicted 58 | . . . . 14 38 6 . Guns . | . . . . . . . . Cannons . | . . . . . . . . Explosions . | . . . . . . . . Melee . | . . . . . . . . Ramming 58 | . . . . 14 38 6 . Kinetic . | . . . . . . . . Thermal . | . . . . . . . . Explosive . | . . . . . . . . Electromagnetic . | . . . . . . . . Impact . | . . . . . . . . Slashing . | . . . . . . . . Piercing . | . . . . . . . . Highest Corruption 2 | . . . . 2 2 . . Average Corruption 1 | . . . . 2 1 . . Corruption Purged . | . . . . . . . . Overload Shots . | . . . . . . . . Overflow Damage . | . . . . . . . . Projectiles . | . . . . . . . . Explosions . | . . . . . . . . Melee . | . . . . . . . . Knockbacks . | . . . . . . . . Impact . | . . . . . . . . Kinetic . | . . . . . . . . Secondary . | . . . . . . . . Self-Inflicted Damage 27 | . . . . 6 18 3 . Shots . | . . . . . . . . Rammed 12 | . . . . 5 6 1 . Targets Rammed 12 | . . . . 5 6 1 . Kicked . | . . . . . . . . Crushed . | . . . . . . . . Highest Temperature . | . . . . . . . . Average Temperature . | . . . . . . . . Received Heat Transfer 255 | . . 9 . 6 153 87 . Siege Activations . | . . . . . . . . Robots Corrupted . | . . . . . . . . Combat Hostiles . | . . . . . . . . Parts Fried . | . . . . . . . . Impact Corruptions . | . . . . . . . . Robots Melted . | . . . . . . . . Combat Hostiles . | . . . . . . . . Parts Melted . | . . . . . . . . Heat Transferred . | . . . . . . . . Parts Sabotaged . | . . . . . . . . Parts Stolen . | . . . . . . . . Parts Stripped . | . . . . . . . . Power Chain Reactions . | . . . . . . . . Missiles Intercepted . | . . . . . . . . Alert | -11 -10 -10 -10 -9 -8 -7 -6 ------- Run | Scr Mat Min Exi Min Mat Fac Fac Peak Influence 172 | . . . . 158 172 108 . Initial 77 | . . . . . 53 77 50 Average 64 | . . . . 46 113 87 . Maximum Alert Level . | . . . . . . . . Low Security (%) 100 | . 100 100 . 100 100 100 . Level 1 . | . . . . . . . . Level 2 . | . . . . . . . . Level 3 . | . . . . . . . . Level 4 . | . . . . . . . . Level 5 . | . . . . . . . . High Security . | . . . . . . . . Max Security . | . . . . . . . . Squads Dispatched 2 | . . . . . 1 1 . Investigation . | . . . . . . . . Extermination . | . . . . . . . . Reinforcement 2 | . . . . . 1 1 . Assault . | . . . . . . . . Garrison . | . . . . . . . . Intercept . | . . . . . . . . Construction Impeded . | . . . . . . . . Haulers Reinforced . | . . . . . . . . Active Scanning Responses . | . . . . . . . . Cargo Convoy Interrupts . | . . . . . . . . Stealth | -11 -10 -10 -10 -9 -8 -7 -6 --------- Run | Scr Mat Min Exi Min Mat Fac Fac Distress Signals . | . . . . . . . . Communications Jammed . | . . . . . . . . Distress Signals . | . . . . . . . . Times Spotted 42 | . . 2 . 15 15 10 . Peak Tracking Total 10 | . . 2 . 6 10 7 . Tactical Retreats 5 | . . . . 3 2 . . Traps | -11 -10 -10 -10 -9 -8 -7 -6 ------- Run | Scr Mat Min Exi Min Mat Fac Fac Traps Triggered . | . . . . . . . . Indirectly . | . . . . . . . . Trap Hack Attempts . | . . . . . . . . Triggered . | . . . . . . . . Disarmed . | . . . . . . . . Reprogrammed . | . . . . . . . . Reused . | . . . . . . . . Traps Extracted . | . . . . . . . . Installed . | . . . . . . . . Triggered . | . . . . . . . . Exploded 2 | . . . . 2 . . . Machines | -11 -10 -10 -10 -9 -8 -7 -6 ---------- Run | Scr Mat Min Exi Min Mat Fac Fac Machines Disabled . | . . . . . . . . Max in Single Turn . | . . . . . . . . Machines Sabotaged . | . . . . . . . . Garrisons Compromised . | . . . . . . . . Overloaded Fab Kills . | . . . . . . . . Fab Network Shutdowns . | . . . . . . . . Hacking | -11 -10 -10 -10 -9 -8 -7 -6 --------- Run | Scr Mat Min Exi Min Mat Fac Fac Machines Accessed 6 | . . . 2 1 1 2 . Terminals 3 | . . . . . 1 2 . Fabricators . | . . . . . . . . Repair Stations . | . . . . . . . . Recycling Units . | . . . . . . . . Scanalyzers . | . . . . . . . . Garrison Access . | . . . . . . . . Total Hacks 8 | . . . 2 1 2 3 . Successful 5 | . . . 2 1 1 1 . Failed 3 | . . . . . 1 2 . Catastrophic 2 | . . . . . 1 1 . Database Lockouts . | . . . . . . . . Manual 6 | . . . 1 . 2 3 . Terminals 5 | . . . . . 2 3 . Fabricators . | . . . . . . . . Repair Stations . | . . . . . . . . Recycling Units . | . . . . . . . . Scanalyzers . | . . . . . . . . Garrison Access . | . . . . . . . . Terminal Hacks 4 | . . . 2 1 1 . . Record 1 | . . . 1 . . . . Open Door 1 | . . . . 1 . . . Level Access Points 1 | . . . . . 1 . . EX-Prototype ID Bank 1 | . . . 1 . . . . Fabricator Hacks . | . . . . . . . . Repair Station Hacks . | . . . . . . . . Recycling Unit Hacks . | . . . . . . . . Scanalyzer . | . . . . . . . . Garrison Access Hacks . | . . . . . . . . Unauthorized Hacks 1 | . . . . . . 1 . Terminals 1 | . . . . . . 1 . Assimilate 1 | . . . . . . 1 . Fabricators . | . . . . . . . . Repair Stations . | . . . . . . . . Recycling Units . | . . . . . . . . Scanalyzers . | . . . . . . . . Garrison Access . | . . . . . . . . Data Cores Recovered . | . . . . . . . . Used . | . . . . . . . . Hacking Detections 3 | . . . . . 1 2 . Full Trace Events . | . . . . . . . . Feedback Events . | . . . . . . . . Feedback Blocked . | . . . . . . . . Robot Schematics Acquired . | . . . . . . . . Robots Built . | . . . . . . . . Matter . | . . . . . . . . Time . | . . . . . . . . Total Robot Build Rating . | . . . . . . . . Part Schematics Acquired . | . . . . . . . . Parts Built . | . . . . . . . . Matter . | . . . . . . . . Time . | . . . . . . . . Total Part Build Rating . | . . . . . . . . Parts Repaired . | . . . . . . . . Time . | . . . . . . . . Parts Recycled . | . . . . . . . . Recycled Matter . | . . . . . . . . Retrieved Matter . | . . . . . . . . Retrieved Components . | . . . . . . . . Parts Scanalyzed . | . . . . . . . . Part Schematics Acquired . | . . . . . . . . Parts Damaged . | . . . . . . . . Bothacking | -11 -10 -10 -10 -9 -8 -7 -6 ------------ Run | Scr Mat Min Exi Min Mat Fac Fac Used RIF Installer . | . . . . . . . . Robots Hacked . | . . . . . . . . Non-combat . | . . . . . . . . Combat . | . . . . . . . . Robot Hacks Applied . | . . . . . . . . Relay Couplers Released . | . . . . . . . . Robots Rewired . | . . . . . . . . Allies Hacked . | . . . . . . . . Hacks Repelled . | . . . . . . . . Allies | -11 -10 -10 -10 -9 -8 -7 -6 -------- Run | Scr Mat Min Exi Min Mat Fac Fac Total Allies 2 | . . . . 1 . 1 . Largest Group 1 | . . . . 1 . 1 . Highest-Rated Group 31 | . . . . 31 . 26 . Highest-Rated Ally 31 | . . . . 31 . 26 . Total Orders . | . . . . . . . . Ally Attacks 13 | . . . . 13 . . . Total Damage 107 | . . . . 107 . . . Kills 2 | . . . . 2 . . . Allies Corrupted . | . . . . . . . . Allies Melted . | . . . . . . . . Intel | -11 -10 -10 -10 -9 -8 -7 -6 ------- Run | Scr Mat Min Exi Min Mat Fac Fac Robot Analysis Total . | . . . . . . . . Derelict Logs Recovered 2 | . . . . 2 . . . Drone Launches . | . . . . . . . . Drone Recoveries . | . . . . . . . . Exploration | -11 -10 -10 -10 -9 -8 -7 -6 ------------- Run | Scr Mat Min Exi Min Mat Fac Fac Turns Passed 596 | . 26 21 206 177 80 86 . Spaces Moved 1123 | 1 42 42 397 342 144 155 . Core 1122 | . 42 42 397 342 144 155 . Treads . | . . . . . . . . Legs 1 | 1 . . . . . . . Wheels . | . . . . . . . . Hover . | . . . . . . . . Flight . | . . . . . . . . Fastest Speed 50 | 120 50 50 50 50 50 50 . Average Speed 50 | 120 50 50 50 50 50 50 . Slowest Speed 120 | 120 50 50 50 50 50 50 . Overloaded Moves . | . . . . . . . . Propulsion Burnouts . | . . . . . . . . Robots Hopped . | . . . . . . . . Cave-ins Triggered . | . . . . . . . . Exploration Rate (%) 27 | 2 9 16 64 74 17 8 . Regions Visited 7 Branch Regions 3 Pre-discovered Areas 2 | . . . 1 1 . . . Known Exits Taken 2 | . . . . 1 1 . . Unknown Exits Taken 5 | 1 1 1 1 . . 1 . Scrap Searched 1 | . . . . 1 . . . Spaces Dug . | . . . . . . . . Terrain Destroyed . | . . . . . . . . Melee . | . . . . . . . . Projectile . | . . . . . . . . AOE . | . . . . . . . . Terrain Rammed . | . . . . . . . . Walls Destroyed . | . . . . . . . . Machines Disabled . | . . . . . . . . Actions | -11 -10 -10 -10 -9 -8 -7 -6 --------- Run | Scr Mat Min Exi Min Mat Fac Fac Total 1152 | . 48 41 405 348 150 160 . Wait 3 | . . . . . . 3 . Move 1116 | . 41 41 396 341 143 154 . Hop . | . . . . . . . . Pick Up 5 | . . . 5 . . . . Fast Attach 2 | . . . . . 1 1 . Attach 2 | . 2 . . . . . . Detach . | . . . . . . . . Swap . | . . . . . . . . Drop 11 | . 5 . 4 2 . . . Fire . | . . . . . . . . Melee 1 | . . . . . . 1 . Ram 12 | . . . . 5 6 1 . Kick . | . . . . . . . . Crush . | . . . . . . . . Escape Stasis . | . . . . . . . . Rewire . | . . . . . . . . Trap . | . . . . . . . . Miscellaneous . | . . . . . . . . Route ------- -11/Scrapyard -10/Materials -10/Mines -10/Exiles (discovered 2 exits: *Min x2) -9/Mines (discovered 2 exits: *Mat x2) -8/Materials (discovered 3 exits: *Fac x3) -7/Factory -6/Factory History --------- Turn | Location | Event 1 | -11/Scrapyard | Discovered new exit (range 0) 1 | -11/Scrapyard | Entered Materials 9 | -10/Materials | Discovered new exit (range 15) 27 | -10/Materials | Entered Mines 46 | -10/Mines | Deemed a non-threat by the Exiles lab entrance 46 | -10/Mines | Discovered new exit (range 5) 48 | -10/Mines | Entered Exiles 56 | -10/Exiles | Discovered new exit (range 15) 64 | -10/Exiles | Met 8R-AWN 73 | -10/Exiles | Met EX-HEX 92 | -10/Exiles | Met EX-DEC 94 | -10/Exiles | Learned location of Zion (-7) 106 | -10/Exiles | Met EX-BIN 112 | -10/Exiles | Aligned with FarCom system 113 | -10/Exiles | Given EX-Vault access code 194 | -10/Exiles | Opened EX-Vault 200 | -10/Exiles | Found Supersonic Drone Bay 202 | -10/Exiles | Found Longsword +1 214 | -10/Exiles | Warned to stay clear of 0b10 Research branches 249 | -10/Exiles | Discovered new exit (range 11) 254 | -10/Exiles | Stole two prototypes: Supersonic Drone Bay, Longsword +1 254 | -10/Exiles | Entered Mines 303 | -9/Mines | Escorted by a lone wolf Derelict 313 | -9/Mines | Build established: Mutant 362 | -9/Mines | Found the Drone Emporium 424 | -9/Mines | Learned location of Storage (-9) 426 | -9/Mines | Identified exit to Materials 427 | -9/Mines | Discovered exit to Materials (range 13) 431 | -9/Mines | Entered Materials 431 | -8/Materials | Evolved 4 slots: Propulsion x2, Utility x2 442 | -8/Materials | Identified exit to Factory 511 | -8/Materials | Entered Factory 511 | -7/Factory | Evolved 2 slots: Utility x2 513 | -7/Factory | FarCom data flow suspended 589 | -7/Factory | Discovered new exit (range 14) 597 | -7/Factory | Entered another Factory area 597 | -6/Factory | Evolved 2 slots: Utility x2 597 | -6/Factory | Self-destructed Last Messages --------------- 00551_ Connecting with Terminal... 00553_ K-01 Serf cleans the Matter Pump. 00555_ Administrator 4a reveals location of hidden door. 00555_ Administrator 4a reveals location of Blade Trap. 00561_ Administrator 4a reveals location of hidden door. 00573_ Administrator 4a reveals location of Proton Bomb Trap. 00576_ O-16 Technician: "IFF HANDSHAKE FAILED. SECURING TERMINAL." 00578_ Administrator 4a reveals location of Proton Bomb Trap. 00578_ O-16 Technician uses terminal to summon reinforcements. 00578_ ALERT: Hostiles spotted, dispatching reinforcements to Terminal F003. 00578_ O-16 Technician locks terminal. 00581_ Lgt. Treads destroyed. 00589_ EXIT=FOUND 00593_ Slammed into G-47 Trooper. 00593_ Power Maul destroyed. 00594_ G-47 Trooper destroyed. PARAMETERS=UTILITY+2 LOCATION=UNKNOWN GOAL=ESCAPE Map ----- +----------------------------------------------------+ | ???????????????????????????????????????? | | ???????????????????????????????????????? | | ???????????????????????????????????????? | | ???????????????????????????????????????? | | ???????????????????????????????????????? | | ???????????????????????????????????????? | | ???????????????????????????????????????? | | ???????????????????????????????????????? | | ???????????????????????????????????????? | | ???????????????????????????????????????? | | ????????????? ?????????????????????? | | ????????????# #????????????????????? | | ????????????# #????????????????????? | | ????????????# #????????????????????? | | ????????????# #????????????????????? | | ????????????# #????????????????????? | | ????????????# #????????????????????? | | ????????????# #????????????????????? | | ????????????# #????????????????????? | | ????????????# #????????????????????? | | ????????????# ###+#######??????????? | | ????????????# ?????????? | | ????????????# ?????????? | | ????????????# ????????? | | ????????????# ????????? | | ????????????# @ ????????? | | ????????????# ######???????????????? | | ????????????# #????????????????????? | | ????????????#######????????????????????? | | ???????????????????????????????????????? | | ???????????????????????????????????????? | | ???????????????????????????????????????? | | ???????????????????????????????????????? | | ???????????????????????????????????????? | | ???????????????????????????????????????? | | ???????????????????????????????????????? | | ???????????????????????????????????????? | | ???????????????????????????????????????? | | ???????????????????????????????????????? | | ???????????????????????????????????????? | | ???????????????????????????????????????? | | ???????????????????????????????????????? | | ???????????????????????????????????????? | | ???????????????????????????????????????? | | ???????????????????????????????????????? | | ???????????????????????????????????????? | | ???????????????????????????????????????? | | ???????????????????????????????????????? | | ???????????????????????????????????????? | | ???????????????????????????????????????? | +----------------------------------------------------+ Best States ------------- Heat Dissipation 34 Energy Generation 5 Energy Capacity 100 Matter Stores 300 Matter Capacity 300 Sight Range 16 Terrain Scan Density 10 Evasion (%) 50 Item Schematics ----------------- None Robot Schematics ------------------ None Fabricated ------------ Nothing Alien Tech Used ----------------- None Achievements -------------- None Challenges ------------ None Game ------ Seed WarpTargetElectrolaser Manual? 0 Play Time 00:06:06 Cumulative 416.5 hours Start 2021.08.30 @ 18:50:19 End 2021.08.30 @ 18:56:20 Sessions 1 Manual Loads 0 Difficulty Rogue Special Mode None Game No. 403 Rogue 188 Adventurer 112 Explorer 103 Win Type - Total 29 Types 21/0/5/2/0/0/0/1/0 Lore% 87 Gallery% 90 Achievement% 76 Wizard Run 0 Options --------- ASCII 0 Keyboard 0 Movement Numpad Keybinds 0 Fullscreen 1 Font 18/TerminusBold Map View 76x50 Tactical HUD 1 Map Filters NONE Filters NONE Steam 1 RUN: c3947988-2b1d-4817-8b72-13b74844ad1b